fUST/lending_fUST_20250831
["ID","MTS","AMOUNT","RATE_DAILY","PERIOD"]
[382495350,1756648233566,-729.71,0.000175,2]
[382495351,1756648233577,-480.0,0.000175,2]
[382495352,1756648233586,-480.0,0.000175,2]
[382495353,1756648233596,-588.66,0.000175,2]
[382495354,1756648233606,-480.0,0.000175,2]
[382495355,1756648233615,-663.13,0.000175,2]
[382495356,1756648233625,-480.0,0.000175,2]
[382495357,1756648233635,-480.0,0.000175,2]
[382495358,1756648233645,-691.59,0.000175,2]
[382495359,1756648233655,-480.0,0.000175,2]
[382495360,1756648233665,-521.75,0.000175,2]
[382495361,1756648233676,-480.0,0.000175,2]
[382495362,1756648233685,-480.0,0.000175,2]
[382495363,1756648233695,-480.0,0.000175,2]
[382495364,1756648233705,-1546.41,0.000175,2]
[382495365,1756648233715,-497.24,0.000175,2]
[382495366,1756648233725,-480.0,0.000175,2]
[382495367,1756648233734,-590.45,0.000175,2]
[382495368,1756648233744,-844.74,0.000175,2]
[382495369,1756648233753,-480.0,0.000175,2]
[382495370,1756648233763,-480.0,0.000175,2]
[382495371,1756648233773,-480.0,0.000175,2]
[382495372,1756648233783,-954.05,0.000175,2]
[382495373,1756648233792,-238.58620194,0.000175,2]
[382495374,1756648233802,-480.0,0.000175,2]
[382495375,1756648233812,-1263.81,0.000175,2]
[382495376,1756648233823,-756.23,0.000175,2]
[382495377,1756648233832,-480.0,0.000175,2]
[382495378,1756648233842,-1171.73,0.000175,2]
[382495379,1756648233852,-480.0,0.000175,2]
[382495380,1756648233861,-480.0,0.000175,2]
[382495381,1756648233873,-480.0,0.000175,2]
[382495382,1756648233882,-480.0,0.000175,2]
[382495383,1756648233892,-480.0,0.000175,2]
[382495384,1756648233901,-1234.12,0.000175,2]
[382495385,1756648233911,-480.0,0.000175,2]
[382495386,1756648233920,-480.0,0.000175,2]
[382495387,1756648233929,-480.0,0.000175,2]
[382495388,1756648233940,-1322.88,0.000175,2]
[382495389,1756648233950,-1677.83,0.000175,2]
[382495390,1756648233959,-480.0,0.000175,2]
[382495391,1756648233969,-491.56736186,0.000175,2]
[382495392,1756648233978,-512.3,0.000175,2]
[382495393,1756648233987,-480.0,0.000175,2]
[382495394,1756648233997,-480.0,0.000175,2]
[382495395,1756648234006,-480.0,0.000175,2]
[382495396,1756648234016,-480.69081321,0.000175,2]
[382495397,1756648234025,-716.45,0.000175,2]
[382495398,1756648234035,-480.0,0.000175,2]
[382495399,1756648234045,-1575.89,0.000175,2]
[382495400,1756648234055,-480.0,0.000175,2]
[382495401,1756648234064,-480.0,0.000175,2]
[382495402,1756648234074,-982.69,0.000175,2]
[382495403,1756648234084,-1534.85,0.000175,2]
[382495404,1756648234093,-480.0,0.000175,2]
[382495405,1756648234102,-480.0,0.000175,2]
[382495406,1756648234112,-480.0,0.000175,2]
[382495407,1756648234122,-1355.11,0.000175,2]
[382495408,1756648234132,-480.0,0.000175,2]
[382495409,1756648234143,-480.0,0.000175,2]
[382495410,1756648234153,-480.0,0.000175,2]
[382495411,1756648234163,-480.0,0.000175,2]
[382495412,1756648234174,-480.0,0.000175,2]
[382495413,1756648234184,-480.0,0.000175,2]
[382495414,1756648234194,-574.78,0.000175,2]
[382495415,1756648234205,-480.0,0.000175,2]
[382495416,1756648234216,-570.86,0.000175,2]
[382495417,1756648234227,-919.89,0.000175,2]
[382495418,1756648234237,-480.0,0.000175,2]
[382495419,1756648234247,-711.7,0.000175,2]
[382495420,1756648234257,-1715.15,0.000175,2]
[382495421,1756648234266,-480.0,0.000175,2]
[382495422,1756648234276,-911.66,0.000175,2]
[382495423,1756648234286,-480.0,0.000175,2]
[382495424,1756648234295,-480.0,0.000175,2]
[382495425,1756648234305,-651.92,0.000175,2]
[382495426,1756648234314,-3352.13,0.000175,2]
[382495427,1756648234324,-480.0,0.000175,2]
[382495428,1756648234337,-480.0,0.000175,2]
[382495429,1756648234347,-480.0,0.000175,2]
[382495430,1756648234357,-480.0,0.000175,2]
[382495431,1756648234367,-1560.48,0.000175,2]
[382495432,1756648234377,-1140.7,0.000175,2]
[382495433,1756648234387,-480.0,0.000175,2]
[382495434,1756648234397,-480.0,0.000175,2]
[382495435,1756648234406,-480.0,0.000175,2]
[382495436,1756648234418,-480.0,0.000175,2]
[382495437,1756648234428,-480.0,0.000175,2]
[382495438,1756648234437,-480.0,0.000175,2]
[382495439,1756648234447,-480.0,0.000175,2]
[382495440,1756648234456,-597.07,0.000175,2]
[382495441,1756648234466,-999.47,0.000175,2]
[382495442,1756648234475,-292.27771045,0.000175,2]
[382495443,1756648234484,-827.32,0.000175,2]
[382495444,1756648234494,-480.0,0.000175,2]
[382495445,1756648234504,-480.0,0.000175,2]
[382495446,1756648234513,-480.0,0.000175,2]
[382495447,1756648234523,-3203.52,0.000175,2]
[382495448,1756648234532,-1701.75,0.000175,2]
[382495449,1756648234542,-480.0,0.000175,2]
[382495450,1756648234551,-480.0,0.000175,2]
[382495451,1756648234561,-542.28,0.000175,2]
[382495452,1756648234571,-480.0,0.000175,2]
[382495453,1756648234580,-480.0,0.000175,2]
[382495454,1756648234589,-480.84,0.000175,2]
[382495455,1756648234598,-1648.18,0.000175,2]
[382495456,1756648234608,-974.78,0.000175,2]
[382495457,1756648234617,-835.03,0.000175,2]
[382495458,1756648234627,-480.0,0.000175,2]
[382495459,1756648234636,-480.0,0.000175,2]
[382495460,1756648234645,-480.0,0.000175,2]
[382495461,1756648234655,-821.92,0.000175,2]
[382495462,1756648234664,-480.0,0.000175,2]
[382495463,1756648234674,-480.0,0.000175,2]
[382495464,1756648234683,-776.54,0.000175,2]
[382495465,1756648234693,-480.0,0.000175,2]
[382495466,1756648234703,-1122.48,0.000175,2]
[382495467,1756648234712,-268.02018647,0.000175,2]
[382495468,1756648234721,-480.0,0.000175,2]
[382495469,1756648234731,-480.0,0.000175,2]
[382495470,1756648234740,-1159.85,0.000175,2]
[382495471,1756648234751,-480.0,0.000175,2]
[382495472,1756648234760,-480.0,0.000175,2]
[382495473,1756648234769,-1777.94,0.000175,2]
[382495474,1756648234779,-480.0,0.000175,2]
[382495475,1756648234788,-480.0,0.000175,2]
[382495476,1756648234798,-1414.55,0.000175,2]
[382495477,1756648234808,-480.0,0.000175,2]
[382495478,1756648234818,-768.29,0.000175,2]
[382495479,1756648234827,-480.0,0.000175,2]
[382495480,1756648234837,-480.0,0.000175,2]
[382495481,1756648234847,-814.85,0.000175,2]
[382495482,1756648234857,-615.12,0.000175,2]
[382495483,1756648234866,-1365.61,0.000175,2]
[382495484,1756648234876,-854.31,0.000175,2]
[382495485,1756648234886,-1644.56,0.000175,2]
[382495486,1756648234896,-544.33,0.000175,2]
[382495487,1756648234905,-1102.14,0.000175,2]
[382495488,1756648234915,-480.0,0.000175,2]
[382495489,1756648234924,-711.17,0.000175,2]
[382495490,1756648234934,-5508.12,0.000175,2]
[382495491,1756648234943,-1178.41,0.000175,2]
[382495492,1756648234952,-1441.86,0.000175,2]
[382495493,1756648234962,-480.0,0.000175,2]
[382495494,1756648234971,-480.0,0.000175,2]
[382495495,1756648234981,-1062.62,0.000175,2]
[382495496,1756648234990,-480.0,0.000175,2]
[382495497,1756648234999,-1907.62,0.000175,2]
[382495498,1756648235009,-480.0,0.000175,2]
[382495499,1756648235019,-520.33824563,0.000175,2]
[382495500,1756648235029,-480.0,0.000175,2]
[382495501,1756648235038,-3449.22,0.000175,2]
[382495502,1756648235048,-480.0,0.000175,2]
[382495503,1756648235058,-533.26,0.000175,2]
[382495504,1756648235067,-480.0,0.000175,2]
[382495505,1756648235077,-1144.2,0.000175,2]
[382495506,1756648235087,-1028.65,0.000175,2]
[382495507,1756648235097,-2445.3,0.000175,2]
[382495508,1756648235107,-686.6,0.000175,2]
[382495509,1756648235117,-9385.18,0.000175,2]
[382495510,1756648235128,-1033.84,0.000175,2]
[382495511,1756648235138,-480.0,0.000175,2]
[382495512,1756648235148,-480.0,0.000175,2]
[382495513,1756648235158,-480.0,0.000175,2]
[382495514,1756648235168,-1465.55,0.000175,2]
[382495515,1756648235178,-480.0,0.000175,2]
[382495516,1756648235188,-1130.19,0.000175,2]
[382495517,1756648235198,-480.0,0.000175,2]
[382495518,1756648235207,-526.94,0.000175,2]
[382495519,1756648235217,-480.0,0.000175,2]
[382495520,1756648235227,-480.0,0.000175,2]
[382495521,1756648235237,-805.99,0.000175,2]
[382495522,1756648235246,-480.0,0.000175,2]
[382495523,1756648235256,-480.0,0.000175,2]
[382495524,1756648235265,-4195.76,0.000175,2]
[382495525,1756648235275,-622.34,0.000175,2]
[382495526,1756648235284,-517.86,0.000175,2]
[382495527,1756648235294,-634.45,0.000175,2]
[382495528,1756648235304,-480.0,0.000175,2]
[382495529,1756648235314,-1102.7,0.000175,2]
[382495530,1756648235323,-2554.45,0.000175,2]
[382495531,1756648235336,-879.99,0.000175,2]
[382495532,1756648235345,-686.19,0.000175,2]
[382495533,1756648235356,-497.52,0.000175,2]
[382495534,1756648235366,-818.91,0.000175,2]
[382495535,1756648235376,-1079.18,0.000175,2]
[382495536,1756648235387,-1915.81,0.000175,2]
[382495537,1756648235396,-480.0,0.000175,2]
[382495538,1756648235604,-510.46,0.000175,2]
[382495539,1756648235614,-480.0,0.000175,2]
[382495540,1756648235626,-646.85,0.000175,2]
[382495541,1756648235635,-696.26,0.000175,2]
[382495542,1756648235644,-1676.23,0.000175,2]
[382495543,1756648235655,-480.0,0.000175,2]
[382495544,1756648235665,-1631.59,0.000175,2]
[382495545,1756648235674,-480.0,0.000175,2]
[382495546,1756648235684,-501.46,0.000175,2]
[382495547,1756648235693,-480.0,0.000175,2]
[382495548,1756648235702,-615.27,0.000175,2]
[382495549,1756648235712,-932.22,0.000175,2]
[382495550,1756648235721,-544.64,0.000175,2]
[382495551,1756648235731,-480.0,0.000175,2]
[382495552,1756648235740,-440.9063085,0.000175,2]
[382495558,1756648238480,-500.0,0.00017498,2]
[382495560,1756648238490,-500.0,0.00017498,2]
[382495561,1756648238499,-513.5518697,0.00017498,2]
[382495563,1756648238508,-500.0,0.00017498,2]
[382495565,1756648238517,-487.24844673,0.00017498,2]
[382495567,1756648238527,-500.0,0.00017498,2]
[382495569,1756648238536,-166.51808221,0.00017498,2]
[382495572,1756648238546,-333.48191779,0.00017498,2]
[382495574,1756648238555,-284.96731192,0.00017498,2]
[382495576,1756648238567,-241.11758755,0.00017498,2]
[382495578,1756648238577,-230.42779954,0.00017498,2]
[382495580,1756648238588,-120.55480762,0.00017498,2]
[382495582,1756648238597,-500.0,0.00017498,2]
[382495584,1756648238606,-280.11684826,0.00017498,2]
[382495586,1756648238617,-219.88315174,0.00017498,2]
[382495587,1756648238628,-500.0,0.00017498,2]
[382495588,1756648238638,-595.41886434,0.00017498,2]
[382495589,1756648238648,-476.48144363,0.00017498,2]
[382495590,1756648238659,-23.51855637,0.00017498,2]
[382495591,1756648238669,-506.41175468,0.00017498,2]
[382495592,1756648238678,-500.0,0.00017498,2]
[382495593,1756648238687,-500.0,0.00017498,2]
[382495594,1756648238696,-500.0,0.00017498,2]
[382495595,1756648238705,-440.73925825,0.00017498,2]
[382495596,1756648238717,-59.26074175,0.00017498,2]
[382495597,1756648238726,-500.0,0.00017498,2]
[382495598,1756648238735,-617.52993905,0.00017498,2]
[382495599,1756648238745,-480.0,0.00017499,2]
[382495601,1756648238754,-904.3036915,0.000175,2]
[382495603,1756648238763,-480.0,0.000175,2]
[382495605,1756648238772,-345.62403069,0.000175,2]
[382495607,1756648238782,-594.45,0.000175,2]
[382495609,1756648238791,-1337.19,0.000175,2]
[382495611,1756648238800,-480.0,0.000175,2]
[382495613,1756648238810,-1978.07,0.000175,2]
[382495615,1756648238827,-2159.45,0.000175,2]
[382495617,1756648238836,-1391.58,0.000175,2]
[382495619,1756648238845,-1400.49,0.000175,2]
[382495621,1756648238855,-480.0,0.000175,2]
[382495623,1756648238864,-815.94,0.000175,2]
[382495625,1756648238873,-480.0,0.000175,2]
[382495627,1756648238883,-876.2,0.000175,2]
[382495629,1756648238892,-3497.53,0.000175,2]
[382495631,1756648238901,-7027.02,0.000175,2]
[382495633,1756648238910,-996.41,0.000175,2]
[382495635,1756648238919,-480.0,0.000175,2]
[382495637,1756648238928,-480.0,0.000175,2]
[382495639,1756648238937,-480.0,0.000175,2]
[382495641,1756648238946,-797.47,0.000175,2]
[382495643,1756648238955,-908.84,0.000175,2]
[382495645,1756648238964,-1476.02,0.000175,2]
[382495647,1756648238973,-480.0,0.000175,2]
[382495649,1756648238983,-3020.08,0.000175,2]
[382495651,1756648238992,-677.86,0.000175,2]
[382495653,1756648239002,-1153.11,0.000175,2]
[382495655,1756648239012,-6707.61,0.000175,2]
[382495657,1756648239021,-480.0,0.000175,2]
[382495659,1756648239031,-480.0,0.000175,2]
[382495661,1756648239041,-480.0,0.000175,2]
[382495663,1756648239050,-481.32029746,0.000175,2]
[382495665,1756648239059,-160.0,0.00017501,2]
[382495667,1756648239068,-480.0,0.00017501,2]
[382495669,1756648239077,-480.0,0.00017501,2]
[382495671,1756648239087,-667.48,0.00017501,2]
[382495673,1756648239096,-561.94,0.00017501,2]
[382495675,1756648239106,-480.0,0.00017501,2]
[382495677,1756648239115,-502.97,0.00017501,2]
[382495679,1756648239125,-500.0,0.00017501,2]
[382495681,1756648239136,-354.0,0.00017513,2]
[382495683,1756648239145,-1169.77679474,0.00017537,2]
[382495685,1756648239154,-354.0,0.00017601,2]
[382495687,1756648239164,-1169.77679474,0.00017606,2]
[382495689,1756648239173,-354.0,0.00017612,2]
[382495691,1756648239183,-480.0,0.00017619,2]
[382495693,1756648239192,-858.04,0.00017619,2]
[382495695,1756648239201,-774.57,0.00017619,2]
[382495697,1756648239211,-2181.98,0.00017619,2]
[382495699,1756648239220,-480.0,0.00017619,2]
[382495701,1756648239229,-480.0,0.00017619,2]
[382495703,1756648239238,-1106.49,0.00017619,2]
[382495705,1756648239247,-1405.3,0.00017619,2]
[382495707,1756648239257,-1461.57,0.00017619,2]
[382495709,1756648239266,-1150.1,0.00017619,2]
[382495711,1756648239279,-180.25310697,0.00017619,2]
[382495713,1756648239288,-695.36,0.00017619,2]
[382495715,1756648239297,-685.42,0.00017619,2]
[382495717,1756648239307,-480.0,0.00017619,2]
[382495719,1756648239316,-655.64,0.00017619,2]
[382495721,1756648239325,-871.72,0.00017619,2]
[382495723,1756648239338,-1086.19,0.00017619,2]
[382495725,1756648239347,-716.56,0.00017619,2]
[382495727,1756648239356,-768.76,0.00017619,2]
[382495729,1756648239367,-1521.57,0.00017619,2]
[382495731,1756648239380,-1474.76,0.00017619,2]
[382495733,1756648239390,-1107.78,0.00017619,2]
[382495735,1756648239399,-594.32,0.00017619,2]
[382495737,1756648239410,-480.0,0.00017619,2]
[382495739,1756648239422,-1378.71,0.00017619,2]
[382495741,1756648239432,-754.17,0.00017619,2]
[382495743,1756648239441,-1730.85,0.00017619,2]
[382495745,1756648239450,-480.0,0.00017619,2]
[382495747,1756648239459,-1383.34,0.00017619,2]
[382495749,1756648239468,-480.0,0.00017619,2]
[382495751,1756648239479,-480.0,0.00017619,2]
[382495753,1756648239488,-354.0,0.0001762,2]
[382495756,1756648239498,-1570.0,0.00017643,2]
[382495757,1756648239507,-480.0,0.0001766,2]
[382495759,1756648239516,-1169.77679474,0.00017674,2]
[382495761,1756648239526,-354.0,0.00017703,2]
[382495764,1756648239536,-160.0,0.00017719,2]
[382495765,1756648239545,-11364.23969824,0.0001772,2]
[382495768,1756648239554,-160.0,0.0001772,2]
[382495769,1756648239564,-232.78794292,0.0001772,2]
[382495771,1756648239573,-160.0,0.0001772,2]
[382495774,1756648239583,-845.95363151,0.0001772,2]
[382495776,1756648239592,-160.0,0.0001772,2]
[382495777,1756648239601,-188.24652281,0.0001772,2]
[382495779,1756648239611,-530.02580203,0.0001772,2]
[382495781,1756648239621,-160.0,0.0001772,2]
[382495783,1756648239633,-160.0,0.0001772,2]
[382495785,1756648239643,-217.4012883,0.0001772,2]
[382495787,1756648239652,-160.0,0.0001772,2]
[382495789,1756648239661,-425.75173308,0.0001772,2]
[382495791,1756648239670,-480.0,0.0001774,2]
[382495793,1756648239680,-400.0,0.0001775,2]
[382495795,1756648239689,-306.0,0.00017757,2]
[382495797,1756648239699,-168.0,0.00017769,2]
[382495799,1756648239708,-480.0,0.00017772,2]
[382495801,1756648239717,-480.0,0.00017772,2]
[382495803,1756648239728,-500.0,0.00017773,2]
[382495805,1756648239738,-500.0,0.00017773,2]
[382495807,1756648239747,-500.0,0.00017773,2]
[382495809,1756648239756,-500.0,0.00017773,2]
[382495811,1756648239765,-500.0,0.00017773,2]
[382495814,1756648239775,-432.56640123,0.00017773,2]
[382495816,1756648239785,-500.0,0.00017773,2]
[382495818,1756648239795,-500.0,0.00017773,2]
[382495820,1756648239804,-500.0,0.00017773,2]
[382495822,1756648239814,-500.39149769,0.00017773,2]
[382495824,1756648239823,-500.0,0.00017773,2]
[382495826,1756648239832,-500.0,0.00017773,2]
[382495828,1756648239842,-500.0,0.00017773,2]
[382495830,1756648239851,-629.53150776,0.00017773,2]
[382495832,1756648239861,-403.58140753,0.00017773,2]
[382495834,1756648239875,-500.0,0.00017773,2]
[382495836,1756648239885,-500.0,0.00017773,2]
[382495838,1756648239895,-500.44109157,0.00017773,2]
[382495840,1756648239904,-500.0,0.00017773,2]
[382495842,1756648239914,-500.0,0.00017773,2]
[382495844,1756648239923,-500.0,0.00017773,2]
[382495846,1756648239932,-501.4016472,0.00017773,2]
[382495848,1756648239942,-500.0,0.00017773,2]
[382495850,1756648239951,-500.0,0.00017773,2]
[382495852,1756648239960,-500.0,0.00017773,2]
[382495854,1756648239970,-500.0,0.00017773,2]
[382495856,1756648239979,-500.0,0.00017773,2]
[382495858,1756648239990,-599.00710125,0.00017773,2]
[382495860,1756648239999,-480.0,0.00017773,2]
[382495862,1756648240009,-480.0,0.00017773,2]
[382495864,1756648240018,-1411.15,0.00017773,2]
[382495866,1756648240029,-480.0,0.00017773,2]
[382495868,1756648240038,-603.37,0.00017773,2]
[382495870,1756648240048,-480.0,0.00017773,2]
[382495872,1756648240057,-588.24,0.00017773,2]
[382495874,1756648240067,-480.0,0.00017773,2]
[382495876,1756648240076,-480.0,0.00017773,2]
[382495878,1756648240087,-480.0,0.00017773,2]
[382495880,1756648240096,-480.0,0.00017773,2]
[382495882,1756648240105,-480.0,0.00017773,2]
[382495884,1756648240115,-480.0,0.00017773,2]
[382495886,1756648240126,-974.13,0.00017773,2]
[382495888,1756648240136,-676.51,0.00017773,2]
[382495890,1756648240145,-480.0,0.00017773,2]
[382495892,1756648240155,-538.84552751,0.00017773,2]
[382495894,1756648240164,-480.0,0.00017773,2]
[382495896,1756648240173,-480.0,0.00017773,2]
[382495898,1756648240183,-480.0,0.00017773,2]
[382495900,1756648240192,-533.25633355,0.00017773,2]
[382495902,1756648240203,-480.0,0.00017773,2]
[382495904,1756648240212,-725.48,0.00017773,2]
[382495906,1756648240222,-480.0,0.00017773,2]
[382495908,1756648240231,-480.0,0.00017773,2]
[382495910,1756648240241,-810.4,0.00017773,2]
[382495912,1756648240250,-480.0,0.00017773,2]
[382495914,1756648240260,-480.0,0.00017773,2]
[382495916,1756648240269,-873.75,0.00017773,2]
[382495918,1756648240279,-1082.45,0.00017773,2]
[382495920,1756648240288,-693.75,0.00017773,2]
[382495922,1756648240298,-812.27,0.00017773,2]
[382495924,1756648240308,-518.04,0.00017773,2]
[382495926,1756648240317,-1063.27,0.00017773,2]
[382495928,1756648240326,-914.82,0.00017773,2]
[382495930,1756648240340,-480.0,0.00017773,2]
[382495932,1756648240349,-2081.49,0.00017773,2]
[382495934,1756648240359,-2367.83,0.00017773,2]
[382495936,1756648240368,-480.0,0.00017773,2]
[382495938,1756648240380,-930.11,0.00017773,2]
[382495940,1756648240390,-490.60202883,0.00017773,2]
[382495942,1756648240399,-201.64979696,0.00017773,2]
[382495945,1756648240411,-480.81,0.00017773,2]
[382495946,1756648240420,-480.0,0.00017773,2]
[382495949,1756648240430,-480.0,0.00017774,2]
[382495951,1756648240440,-414.47149648,0.00017774,2]
[382495953,1756648240450,-420.0,0.00017774,2]
[382495955,1756648240460,-480.0,0.00017774,2]
[382495957,1756648240470,-482.69,0.00017774,2]
[382495959,1756648240479,-480.0,0.00017774,2]
[382495961,1756648240488,-400.0,0.00017774,2]
[382495963,1756648240498,-357.35753866,0.00017774,2]
[382495965,1756648240507,-480.0,0.00017774,2]
[382495967,1756648240517,-480.0,0.00017774,2]
[382495969,1756648240526,-480.0,0.00017774,2]
[382495971,1756648240535,-480.0,0.00017774,2]
[382495973,1756648240545,-480.0,0.00017774,2]
[382495975,1756648240554,-480.0,0.00017774,2]
[382495977,1756648240564,-480.0,0.00017774,2]
[382495979,1756648240573,-480.0,0.00017774,2]
[382495981,1756648240583,-664.77,0.00017774,2]
[382495983,1756648240593,-599.01,0.00017774,2]
[382495985,1756648240603,-480.0,0.00017774,2]
[382495987,1756648240612,-480.0,0.00017774,2]
[382495989,1756648240623,-480.0,0.00017774,2]
[382495991,1756648240633,-1069.13,0.00017774,2]
[382495993,1756648240643,-1305.71,0.00017774,2]
[382495995,1756648240652,-480.0,0.00017774,2]
[382495997,1756648240662,-480.0,0.00017774,2]
[382495999,1756648240672,-480.0,0.00017774,2]
[382496001,1756648240682,-480.0,0.00017774,2]
[382496003,1756648240692,-480.0,0.00017774,2]
[382496005,1756648240701,-501.17,0.00017774,2]
[382496007,1756648240711,-480.0,0.00017774,2]
[382496009,1756648240720,-480.0,0.00017774,2]
[382496011,1756648240730,-480.0,0.00017774,2]
[382496013,1756648240739,-480.0,0.00017774,2]
[382496015,1756648240748,-480.0,0.00017774,2]
[382496017,1756648240758,-1356.92,0.00017774,2]
[382496019,1756648240767,-480.0,0.00017774,2]
[382496021,1756648240776,-480.0,0.00017774,2]
[382496023,1756648240786,-480.0,0.00017774,2]
[382496025,1756648240795,-480.0,0.00017774,2]
[382496027,1756648240805,-480.0,0.00017774,2]
[382496029,1756648240815,-480.0,0.00017774,2]
[382496031,1756648240824,-302.5322839,0.00017774,2]
[382496033,1756648240834,-809.59,0.00017774,2]
[382496035,1756648240843,-480.0,0.00017774,2]
[382496037,1756648240854,-480.0,0.00017774,2]
[382496039,1756648240863,-480.0,0.00017774,2]
[382496041,1756648240873,-678.71,0.00017774,2]
[382496043,1756648240882,-480.0,0.00017774,2]
[382496045,1756648240891,-480.0,0.00017774,2]
[382496047,1756648240901,-500.49,0.00017774,2]
[382496049,1756648240910,-480.0,0.00017774,2]
[382496051,1756648240919,-480.0,0.00017774,2]
[382496053,1756648240929,-565.91,0.00017774,2]
[382496055,1756648240938,-480.0,0.00017774,2]
[382496057,1756648240948,-381.87211716,0.00017774,2]
[382496059,1756648240957,-1024.97,0.00017774,2]
[382496061,1756648240967,-480.0,0.00017774,2]
[382496063,1756648240977,-554.2,0.00017774,2]
[382496065,1756648240986,-480.0,0.00017774,2]
[382496067,1756648240995,-480.0,0.00017774,2]
[382496069,1756648241005,-480.0,0.00017774,2]
[382496071,1756648241015,-728.69,0.00017774,2]
[382496073,1756648241024,-500.75,0.00017774,2]
[382496075,1756648241034,-480.0,0.00017774,2]
[382496077,1756648241043,-480.0,0.00017774,2]
[382496079,1756648241053,-480.45,0.00017774,2]
[382496081,1756648241062,-480.0,0.00017774,2]
[382496083,1756648241072,-808.13,0.00017774,2]
[382496104,1756648241264,-480.0,0.00017774,2]
[382496107,1756648241274,-480.0,0.00017774,2]
[382496109,1756648241283,-267.69012047,0.00017774,2]
[382496111,1756648241293,-480.0,0.00017774,2]
[382496112,1756648241302,-1189.62,0.00017774,2]
[382496114,1756648241312,-389.61774307,0.00017774,2]
[382496116,1756648241322,-480.0,0.00017774,2]
[382496118,1756648241332,-480.0,0.00017774,2]
[382496121,1756648241345,-480.0,0.00017774,2]
[382496122,1756648241354,-480.0,0.00017774,2]
[382496124,1756648241363,-480.0,0.00017774,2]
[382496126,1756648241373,-486.4,0.00017774,2]
[382496128,1756648241383,-480.0,0.00017774,2]
[382496130,1756648241393,-584.59,0.00017774,2]
[382496132,1756648241404,-508.96,0.00017774,2]
[382496135,1756648241415,-1336.36,0.00017774,2]
[382496137,1756648241425,-771.32,0.00017774,2]
[382496139,1756648241434,-500.0,0.00017774,2]
[382496141,1756648241444,-574.12,0.00017774,2]
[382496143,1756648241454,-891.55,0.00017774,2]
[382496145,1756648241463,-590.97,0.00017774,2]
[382496147,1756648241472,-480.0,0.00017774,2]
[382496149,1756648241481,-480.0,0.00017774,2]
[382496151,1756648241491,-660.75,0.00017774,2]
[382496153,1756648241500,-1143.43,0.00017774,2]
[382496155,1756648241510,-480.0,0.00017774,2]
[382496157,1756648241519,-1792.88,0.00017774,2]
[382496159,1756648241529,-480.0,0.00017774,2]